bitfinex/quotes_ETHUSD_20260312
["timestamp","ask_amount","ask_price","bid_price","bid_amount"]
[1773322480979,5.41653117,2068.5,2067.6,0.001]
[1773322482063,5.88634489,2068.5,2067.6,0.001]
[1773322482399,5.88634489,2068.5,2067.4,0.001]
[1773322482400,0.46981372,2068.3,2067.4,0.001]
[1773322482559,0.46981372,2068.1,2067.4,0.001]
[1773322483079,0.46981372,2067.9,2067.1,0.001]
[1773322483482,5.41553117,2067.8,2067.1,0.001]
[1773322483784,0.48699579,2067.7,2067.1,0.001]
[1773322483965,0.002,2069.4,2067.5,0.49213416]
[1773322484178,25.72624753,2069.3,2068.3,23.850808]
[1773322484466,25.72624753,2069.3,2068.6,1.20854684]
[1773322484657,0.002,2069.4,2068.6,1.20854684]
[1773322485083,0.002,2069.4,2068.7,12.86285]
[1773322485415,0.002,2069.4,2068.7,4.513988]
[1773322485622,0.002,2069.4,2068.6,2.151]
[1773322485910,0.002,2069.4,2068.8,1.75785493]
[1773322486216,0.002,2069.4,2068.9,4.31]
[1773322486409,25.72824753,2069.4,2068.7,1.75785493]
[1773322486700,25.72824753,2069.4,2069.0,2.152]
[1773322486904,25.72824753,2069.4,2068.9,1.20834223]
[1773322487210,0.002,2069.4,2069.0,2.153]
[1773322487519,0.81330459,2069.7,2069.0,2.153]
[1773322487673,25.72624753,2069.6,2069.0,2.153]
[1773322487874,25.72624753,2069.6,2068.6,4.83412218]
[1773322487875,25.72624753,2069.6,2068.6,1.20850408]
[1773322488102,25.72624753,2069.6,2068.7,2.154]
[1773322488295,25.72624753,2069.6,2068.8,2.154]
[1773322488494,25.72624753,2069.6,2068.9,1.20837159]
[1773322488700,25.72624753,2069.6,2068.8,3.3623858]
[1773322489210,0.48699579,2071.7,2069.4,0.49213416]
[1773322489415,0.48699579,2071.7,2069.1,1.75785493]
[1773322489416,30.48699579,2071.6,2070.1,1.75785493]
[1773322489578,30.48699579,2071.6,2069.7,0.64161915]
[1773322489579,30.48699579,2071.6,2070.7,7.350842]
[1773322489580,0.48699579,2071.5,2070.7,7.350842]
[1773322490081,0.48699579,2071.5,2070.8,7.350842]
[1773322490282,1.75785493,2071.2,2070.7,7.350842]
[1773322490485,0.45536703,2070.9,2070.3,6.33618017]
[1773322491087,0.45536703,2070.9,2070.4,6.33618017]
[1773322491919,8.95868,2071.3,2070.4,6.33618017]
[1773322492211,0.45536703,2071.4,2070.6,6.33618017]
[1773322492711,1.20697146,2071.3,2070.8,6.33618017]
[1773322492897,1.20697146,2071.3,2070.3,3.35951127]
[1773322493094,0.45536703,2071.4,2070.3,3.35951127]
[1773322493406,0.45536703,2071.4,2070.8,6.336181]
[1773322493579,1.66204699,2071.9,2071.0,6.336181]
[1773322493776,1.66204699,2071.9,2070.4,1.75785493]
[1773322493777,0.45536703,2071.9,2071.2,5.52987844]
[1773322493981,1.66200824,2071.9,2071.3,5.52987844]
[1773322494182,1.66200402,2071.9,2071.3,5.52987844]
[1773322494384,7.640712,2072.1,2071.3,5.52987844]
[1773322494583,7.640712,2072.1,2070.8,2.154]
[1773322494584,0.32302146,2073.8,2072.5,5.52987844]
[1773322494786,12.5190295,2075.6,2072.5,5.52987844]
[1773322494787,0.45536703,2074.2,2073.5,5.52987844]
[1773322495113,0.45536703,2074.2,2073.5,13.17059044]
[1773322495311,1.75785493,2074.4,2073.5,13.17059044]
[1773322495481,9.63204403,2074.3,2073.2,13.17059044]
[1773322495681,1.2050859,2074.6,2073.2,13.12059044]
[1773322495682,0.45536703,2074.0,2073.2,13.12059044]
[1773322495906,1.75785493,2073.8,2073.2,12.75633511]
[1773322496216,1.75785493,2073.8,2072.4,2.157]
[1773322496217,0.45536703,2073.6,2072.4,2.157]
[1773322496388,2.585432,2073.5,2072.0,2.21695788]
[1773322496583,0.45536703,2073.6,2072.1,2.158]
[1773322496783,1.20567714,2073.6,2072.3,12.988279]
[1773322497028,1.20567714,2073.6,2072.2,1.20644725]
[1773322497330,1.20541727,2074.0,2072.4,16.318603]
[1773322497487,0.45536703,2074.2,2072.9,1.75785493]
[1773322497686,0.77229062,2074.7,2073.0,2.16]
[1773322497687,0.45536703,2074.6,2073.0,2.16]
[1773322497998,3.17790703,2074.5,2072.7,1.75785493]
[1773322498198,0.45536703,2074.2,2072.2,1.20644725]
[1773322498399,14.22398003,2073.9,2072.2,1.20644725]
[1773322498617,1.75785493,2073.7,2072.2,1.20644725]
[1773322498785,11.400628,2073.5,2072.0,4.82608901]
[1773322499112,7.91709,2073.4,2072.0,4.82608901]
[1773322499313,4.39976,2073.5,2072.0,4.82608901]
[1773322499483,1.75785493,2073.4,2072.0,4.82608901]
[1773322499685,0.45536703,2073.2,2071.6,7.96689229]
[1773322499884,0.45536703,2073.2,2071.6,3.88828647]
[1773322499885,2.17165,2072.9,2071.6,3.88828647]
[1773322500189,4.39976,2072.6,2071.5,3.76779207]
[1773322500414,8.893775,2072.3,2071.5,3.76779207]
[1773322500595,0.45536703,2072.6,2071.5,4.97462427]
[1773322501217,1.66131914,2073.1,2071.6,6.455145]
[1773322501418,1.66131914,2073.1,2071.6,4.658145]
[1773322501419,0.45536703,2073.1,2071.6,4.658145]
[1773322501716,1.66129397,2073.1,2071.5,8.8974792]
[1773322501941,0.45536703,2073.0,2071.6,2.312951]
[1773322502095,0.45536703,2072.8,2071.5,4.97462427]
[1773322502440,2.22811,2072.6,2071.5,4.97462085]
[1773322502622,2.22811,2072.6,2071.5,3.76779207]
[1773322502623,0.45536703,2072.4,2071.5,3.76779207]
[1773322502942,1.66170255,2072.4,2071.5,3.76779207]
[1773322503091,1.20609803,2072.8,2071.6,0.04827186]
[1773322503438,0.45536703,2072.9,2071.7,9.774676]
[1773322503595,0.45536703,2072.9,2071.8,0.0482672]
[1773322503791,1.66141893,2072.9,2071.6,8.157]
[1773322504017,0.45536703,2072.9,2071.6,7.90945186]
[1773322504218,1.66144489,2072.9,2071.5,6.73249699]
[1773322504389,1.66141237,2072.9,2071.6,4.15968]
[1773322504590,0.45536703,2072.8,2071.5,4.97464206]
[1773322504820,0.45536703,2072.6,2071.5,4.97463954]
[1773322505019,1.20615622,2072.7,2071.5,3.76779207]
[1773322505020,1.75785493,2072.3,2071.5,3.76779207]
[1773322505199,1.75785493,2072.3,2071.5,3.31242503]
[1773322505200,18.46151,2072.1,2071.5,3.31242503]
[1773322505401,0.45536703,2071.9,2070.7,1.20729559]
[1773322505707,1.75785493,2071.7,2070.4,1.20749613]
[1773322505888,11.49604503,2071.6,2070.5,0.04829751]
[1773322506091,0.45536703,2071.5,2070.4,0.04829984]
[1773322506291,2.6196193,2071.9,2070.5,8.073965]
[1773322506492,2.6196193,2071.9,2070.3,5.13838718]
[1773322506493,3.95665,2071.8,2070.3,5.13838718]
[1773322506694,0.04827201,2072.6,2070.3,5.13838718]
[1773322506695,0.45536703,2074.1,2073.2,1.010661]
[1773322507025,0.45536703,2074.1,2073.2,4.967311]
[1773322507026,0.04827201,2073.8,2073.2,4.967311]
[1773322507430,1.66073304,2074.1,2073.7,4.967311]
[1773322507729,1.66072075,2074.1,2073.8,4.967311]
[1773322508237,1.20526825,2074.3,2073.8,4.967311]
[1773322508436,0.04827201,2074.2,2073.8,4.967311]
[1773322508737,0.04827201,2074.2,2072.9,0.04824159]
[1773322508738,1.75785493,2074.0,2072.9,0.04824159]
[1773322509055,0.04827201,2074.1,2073.0,3.308648]
[1773322509218,0.04827201,2074.1,2072.5,1.20627261]
[1773322509219,1.75785493,2073.7,2072.5,1.20627261]
[1773322509610,0.45536703,2073.9,2072.6,0.04824857]
[1773322509948,0.04827201,2073.8,2072.6,0.04824857]
[1773322510151,0.45536703,2073.9,2072.5,1.20627261]
[1773322510314,1.75785493,2073.7,2072.6,0.04824857]
[1773322510641,0.50363904,2073.9,2072.2,1.20644725]
[1773322510642,2.21322196,2073.4,2072.2,1.20644725]
[1773322510856,1.20586532,2073.2,2071.9,1.20662194]
[1773322511018,1.80612694,2073.1,2071.9,1.20662194]
[1773322511209,2.26149397,2073.1,2071.8,1.20665827]
[1773322511536,0.45536703,2073.0,2071.8,1.20665827]
[1773322511840,2.21322196,2072.8,2071.5,4.827253]
[1773322512037,0.45536703,2072.8,2071.5,4.827253]
[1773322512364,0.45536703,2072.8,2071.6,5.18392]
[1773322512560,1.80612694,2073.2,2071.6,5.13392]
[1773322512857,1.80612694,2073.2,2071.7,1.20673842]
[1773322512858,0.05,2072.4,2071.7,1.20673842]
[1773322513006,1.20592998,2073.1,2071.8,3.3442]
[1773322513214,0.50363904,2073.2,2071.8,9.69894493]
[1773322513540,0.45536703,2076.6,2073.3,3.14063747]
[1773322513838,0.45536703,2076.6,2074.4,8.974443]
[1773322513839,0.45536703,2076.1,2074.4,8.974443]
[1773322514015,1.75785493,2075.9,2074.2,10.022273]
[1773322514215,2.21322196,2075.9,2074.3,1.75785493]
[1773322514464,2.21322196,2075.9,2074.5,5.012925]
[1773322514655,0.04827201,2076.2,2074.6,1.75785493]
[1773322514808,0.45536703,2076.4,2074.6,1.75785493]
[1773322514809,1.20406727,2076.3,2074.8,2.57725]
[1773322515146,1.20406727,2076.3,2074.4,4.82004922]
[1773322515147,1.75785493,2075.8,2074.0,3.42229995]
[1773322515333,1.75785493,2075.8,2074.2,2.047052]
[1773322515528,0.04827201,2075.7,2074.3,2.159]
[1773322515728,0.04827201,2075.7,2074.2,17.389207]
[1773322516047,1.75785493,2075.5,2074.2,14.592636]
[1773322516338,1.75785493,2075.5,2074.3,2.161]
[1773322516339,0.45536703,2075.5,2074.3,2.161]
[1773322516541,2.6196193,2075.9,2073.6,3.0289655]
[1773322516542,1.75785493,2075.2,2073.6,3.0289655]
[1773322516849,1.75785493,2075.2,2073.9,1.20545831]
[1773322516850,3.41797112,2075.2,2073.9,1.20545831]
[1773322517005,0.45536703,2075.2,2073.9,1.20545831]
[1773322517211,2.6196193,2075.9,2073.9,1.20545831]
[1773322517212,1.65979098,2075.7,2074.1,6.103818]
[1773322517411,0.45536703,2075.6,2074.2,3.92185493]
[1773322517738,2.6196193,2075.9,2074.2,3.92185493]
[1773322517739,3.41740826,2076.1,2074.5,19.10831]
[1773322517939,0.45536703,2076.1,2074.5,1.75785493]
[1773322518140,0.45536703,2076.1,2074.6,30.0]
[1773322518442,0.161437,2076.8,2074.8,0.14948499]
[1773322518443,0.04827201,2076.3,2074.8,0.14948499]
[1773322518646,1.75785493,2076.1,2074.8,2.586273]
[1773322518939,0.002,2075.5,2074.8,1.20493541]
[1773322519344,1.65960145,2076.1,2074.8,1.20493541]
[1773322519522,0.002,2075.7,2074.8,1.20493541]
[1773322520331,1.75785493,2075.6,2074.3,8.11466182]
[1773322520516,1.75785493,2075.6,2074.4,11.192846]
[1773322520717,0.098422,2075.7,2073.9,3.191265]
[1773322520718,3.42329186,2075.3,2073.9,3.191265]
[1773322520928,3.42329186,2075.3,2073.5,4.82254319]
[1773322520929,1.75785493,2074.7,2073.5,4.82254319]
[1773322521151,0.46074044,2074.9,2073.5,4.82254319]
[1773322521322,0.46074044,2074.9,2073.5,2.81582]
[1773322521516,0.46074044,2074.9,2073.5,2.176]
[1773322521865,1.75785493,2074.4,2073.2,4.82317682]
[1773322522075,1.20465076,2075.3,2072.7,6.58229653]
[1773322522076,1.75785493,2074.1,2072.7,1.20615622]
[1773322522351,0.46074044,2074.3,2072.8,3.44710492]
[1773322522650,0.46074044,2074.3,2072.8,0.04824392]
[1773322522822,0.46074044,2074.3,2072.9,25.08837984]
[1773322523033,0.50901245,2074.7,2073.2,4.503]
[1773322523231,0.50901245,2074.7,2073.3,2.77115]
[1773322523666,0.50901245,2074.7,2073.1,2.782038]
[1773322523833,0.46074044,2074.4,2072.9,1.20603984]
[1773322524034,1.74421895,2074.2,2072.9,1.20603984]
[1773322524237,0.46074044,2074.1,2072.9,1.20603984]
[1773322524562,0.46074044,2074.1,2072.6,4.82468079]
[1773322524868,1.20569086,2073.5,2072.1,1.20650547]
[1773322525084,0.46074044,2073.2,2071.9,1.20761775]
[1773322525284,2.20495939,2073.0,2071.9,1.20759432]
[1773322525436,0.46074044,2072.9,2071.9,1.20761471]
[1773322525749,0.46074044,2072.9,2072.0,0.04826254]
[1773322525931,0.46074044,2073.3,2072.0,0.04826254]
[1773322526138,0.46074044,2073.0,2072.0,0.04826254]
[1773322526875,0.46074044,2073.0,2071.9,0.001]
[1773322527059,0.46074044,2072.8,2071.9,0.001]
[1773322527369,1.20603984,2072.9,2071.6,0.001]
[1773322527370,1.74421895,2072.5,2071.6,0.001]
[1773322527675,1.74421895,2072.8,2071.6,0.001]
[1773322527977,1.74421895,2072.5,2071.6,0.001]
[1773322528146,0.46074044,2072.4,2071.6,0.001]
[1773322528958,0.46074044,2072.2,2071.6,0.001]
[1773322529275,1.20638903,2072.3,2071.4,0.001]
[1773322529276,0.46074044,2071.9,2071.4,0.001]
[1773322529483,0.46074044,2071.6,2070.1,1.20767112]
[1773322529637,1.20638903,2072.3,2070.1,1.20767112]
[1773322529638,1.74421895,2071.1,2070.1,1.20767112]
[1773322529838,2.20495939,2071.1,2070.1,1.20767112]
[1773322530070,2.20495939,2071.1,2069.6,1.20796289]
[1773322530071,1.74421895,2070.8,2069.6,1.20796289]
[1773322530234,0.46074044,2071.1,2069.6,1.20796289]
[1773322530442,0.46074044,2071.0,2069.6,1.20796289]
[1773322530643,1.74421895,2070.8,2069.6,1.20796289]
[1773322531086,1.20732119,2070.7,2069.5,4.83208414]
[1773322531301,1.66806163,2070.7,2069.5,4.83208414]
[1773322531578,0.46074044,2070.6,2069.5,4.83208414]
[1773322531784,1.20732119,2070.7,2069.0,1.74521895]
[1773322531785,1.74421895,2070.1,2069.1,1.20825479]
[1773322531983,1.74421895,2070.1,2069.0,1.20926964]
[1773322531984,2.20495939,2070.1,2069.0,1.20926964]
[1773322532284,0.46074044,2070.0,2069.0,0.001]
[1773322532654,2.427,2070.5,2069.0,0.001]
[1773322532655,2.20495939,2069.8,2069.0,0.001]
[1773322533082,1.20790452,2069.7,2069.0,0.001]
[1773322533264,0.46074044,2069.6,2069.0,0.001]
[1773322533868,1.20790452,2069.7,2068.8,0.001]
[1773322533869,1.74421895,2069.2,2068.8,0.001]
[1773322534201,1.74421895,2069.1,2068.8,0.001]
[1773322534377,4.513988,2069.0,2068.5,0.001]
[1773322534547,2.20495939,2068.8,2067.4,1.20924833]
[1773322535177,1.74421895,2069.1,2067.4,2.95346728]
[1773322535363,2.20495939,2068.8,2067.4,1.20924833]
[1773322535680,1.74421895,2068.5,2067.4,1.20924833]
[1773322535984,1.74421895,2068.2,2067.3,2.01575553]
[1773322536345,2.20495939,2068.2,2067.3,2.01575553]
[1773322536553,1.74421895,2067.9,2067.3,0.80646182]
[1773322536776,0.46074044,2067.8,2067.3,0.80646182]
[1773322537076,0.46074044,2067.8,2066.4,4.83915826]
[1773322537077,0.46074044,2067.8,2066.5,1.20977498]
[1773322537277,0.46074044,2067.6,2066.4,4.83915826]
[1773322537477,1.74421895,2067.4,2066.1,1.21000919]
[1773322537681,0.46074044,2067.6,2066.1,1.21000919]
[1773322537881,0.46074044,2067.6,2066.3,1.74421895]
[1773322538586,0.46074044,2068.1,2066.9,1.74421895]
[1773322538771,4.63595939,2068.6,2066.9,1.74421895]
[1773322538976,0.46074044,2068.2,2066.7,1.74421895]
[1773322539282,0.46074044,2068.2,2066.9,1.20954085]
[1773322539862,0.46074044,2068.1,2066.9,1.20954085]
[1773322540384,4.17521895,2068.6,2066.5,4.83816343]
[1773322540385,0.46074044,2067.3,2066.5,4.83816343]
[1773322540587,0.46074044,2067.3,2066.0,4.839643]
[1773322541081,0.46074044,2067.8,2066.4,1.74421895]
[1773322541286,0.46074044,2067.8,2066.5,1.20977498]
[1773322541856,2.89274044,2068.3,2066.7,1.74421895]
[1773322542267,0.46074044,2068.3,2066.8,9.339328]
[1773322542470,0.46074044,2068.3,2066.8,4.043153]
[1773322542856,1.66946706,2068.3,2066.8,4.043153]
[1773322543085,1.20872662,2068.3,2066.8,4.043153]
[1773322543283,0.49683807,2068.2,2066.8,4.043153]
[1773322543590,1.739,2068.6,2067.1,7.779853]
[1773322543888,1.739,2068.6,2066.9,1.20954085]
[1773322543889,0.49683807,2068.0,2066.9,1.20954085]
[1773322544190,0.49683807,2068.0,2066.4,4.83909992]
[1773322544191,0.49683807,2067.7,2066.4,1.20983352]
[1773322544381,0.49683807,2067.7,2066.5,5.073]
[1773322544581,6.81721895,2068.2,2066.6,1.74421895]
[1773322544582,2.24105702,2068.2,2066.6,1.74421895]
[1773322544873,0.49683807,2068.1,2066.4,1.20983352]
[1773322545078,2.24105702,2067.9,2066.4,1.20983352]
[1773322545682,0.49683807,2067.9,2066.7,0.001]
[1773322545863,1.74421895,2068.2,2066.7,0.001]
[1773322546192,2.58800848,2068.9,2067.3,2.20109451]
[1773322546193,0.49883807,2068.9,2067.3,2.20109451]
[1773322546358,1.70721655,2068.9,2067.3,4.40509451]
[1773322546558,1.70721527,2068.9,2067.3,4.40509451]
[1773322546761,0.49883807,2068.9,2067.4,2.574]
[1773322546960,0.49883807,2068.9,2067.6,1.74421895]
[1773322547180,0.002,2068.9,2068.0,1.74421895]
[1773322547390,0.002,2068.9,2068.1,1.20883903]
[1773322547888,0.002,2069.1,2068.4,1.74421895]
[1773322548457,0.002,2069.1,2068.5,4.513988]
[1773322548662,0.002,2069.4,2068.4,1.74421895]
[1773322548858,1.70695558,2069.4,2068.1,1.20883903]
[1773322549073,0.49683807,2069.3,2068.1,1.20883903]
[1773322549466,0.49683807,2069.3,2068.0,4.83535612]
[1773322549700,1.70498087,2069.3,2067.9,4.83535612]
[1773322549898,1.70498589,2069.3,2067.9,4.83535612]
[1773322550197,1.70498589,2069.3,2067.9,4.88371435]
[1773322550198,0.49683807,2069.2,2067.9,4.88371435]
[1773322550589,0.49683807,2069.2,2067.9,4.83535612]
[1773322550787,0.49683807,2069.2,2067.9,4.88371435]
[1773322550965,0.49683807,2069.2,2067.9,4.83535612]
[1773322551166,0.49683807,2069.2,2068.1,1.74421895]
[1773322551399,0.002,2069.4,2068.4,1.74421895]
[1773322551582,0.002,2069.4,2068.5,1.20860526]
[1773322552686,0.002,2069.4,2068.5,2.95282421]
[1773322552891,0.49062533,2070.8,2069.3,1.74421895]
[1773322553100,0.49062533,2070.7,2069.3,1.74421895]
[1773322553472,1.69795413,2070.7,2069.4,1.20807963]
[1773322553994,3.44217308,2070.7,2069.4,1.20807963]
[1773322554298,0.49062533,2070.6,2069.4,1.20807963]
[1773322556195,0.49062533,2071.1,2069.6,1.74421895]
[1773322556493,0.49062533,2070.6,2069.4,1.20807963]
[1773322556896,1.20710992,2071.1,2069.4,1.20807963]
[1773322556897,1.74421895,2071.0,2069.4,2.95229858]
[1773322557074,0.49062533,2071.0,2069.5,2.202]
[1773322557274,0.49062533,2070.9,2069.4,2.95229858]
[1773322557572,0.49062533,2070.7,2069.4,1.20807963]
[1773322558197,0.49062533,2070.7,2069.4,3.40907963]
[1773322558572,1.69759783,2071.3,2069.7,1.74421895]
[1773322558770,0.49062533,2071.2,2069.7,1.74421895]
[1773322558972,0.49062533,2071.2,2069.8,2.201]
[1773322559412,0.49062533,2071.7,2069.9,29.66861778]
[1773322559713,1.69737304,2071.7,2070.6,1.2073795]
[1773322559912,1.69737304,2071.7,2070.2,4.83023322]
[1773322559913,0.49062533,2071.5,2070.2,4.83023322]
[1773322560225,0.49062533,2071.2,2069.8,2.201]
[1773322560505,1.74421895,2071.3,2069.7,4.83160813]
[1773322560506,0.49062533,2071.0,2069.7,4.83160813]
[1773322561725,1.69779778,2071.0,2069.7,4.83160813]
[1773322562018,0.49062533,2070.6,2069.4,1.20807963]
[1773322562509,1.20717245,2071.0,2069.4,1.20807963]
[1773322562510,0.49062533,2070.3,2069.4,1.20807963]
[1773322563502,0.49062533,2070.3,2069.1,3.40825479]
[1773322563700,0.002,2070.8,2069.1,3.40825479]
[1773322563701,0.002,2070.8,2069.3,1.74421895]
[1773322563702,0.49262533,2070.8,2069.3,1.74421895]
[1773322564101,0.49262533,2070.8,2069.6,1.74421895]
[1773322564289,0.002,2070.8,2069.5,0.45542578]
[1773322564490,0.002,2070.8,2069.6,2.2]
[1773322564796,0.002,2070.8,2069.8,1.74421895]
[1773322565393,0.002,2070.8,2069.9,2.2]
[1773322565589,0.002,2070.8,2070.2,1.20761279]
[1773322565785,0.002,2071.0,2070.2,1.20761279]
[1773322566809,0.002,2071.0,2070.2,1.2559173]
[1773322568016,0.002,2071.0,2070.2,1.20761279]
[1773322568718,0.49262533,2071.0,2069.7,1.20790452]
[1773322569095,0.49262533,2071.0,2069.8,2.198]
[1773322569289,0.49262533,2071.0,2069.7,1.20790452]
[1773322569602,1.2073795,2070.6,2069.4,4.83231302]
[1773322569920,1.69800483,2070.6,2069.4,4.83231302]
[1773322570294,0.49062533,2070.5,2069.4,7.03031302]
[1773322570487,0.49062533,2070.4,2069.1,4.83298553]
[1773322570687,1.74421895,2070.5,2068.8,1.20843]
[1773322570688,0.49062533,2070.1,2068.8,1.20843]
[1773322570901,10.58516,2069.7,2068.5,1.20860526]
[1773322571218,0.49062533,2069.5,2068.6,0.04834187]
[1773322571518,0.49062533,2069.5,2068.5,0.04834421]
[1773322571821,0.49062533,2069.5,2068.3,1.2097221]
[1773322571822,0.49062533,2069.2,2068.3,1.2097221]
[1773322572226,1.20807963,2069.4,2068.0,1.20985665]
[1773322572227,1.74421895,2069.0,2068.0,1.20985665]
[1773322572515,1.20807963,2069.4,2068.0,1.20985665]
[1773322572516,0.49062533,2068.9,2068.0,1.20985665]
[1773322572893,1.74421895,2069.3,2068.0,1.20985665]
[1773322573108,1.69870496,2069.4,2068.0,1.20985665]
[1773322573301,1.69870496,2069.4,2068.1,1.74421895]
[1773322573502,0.49062533,2069.3,2068.0,1.20985665]
[1773322573709,1.69877338,2069.3,2068.2,1.20878058]
[1773322573904,4.34850663,2069.8,2068.2,1.20878058]
[1773322573905,11.90446233,2069.6,2068.2,1.20878058]
[1773322574226,0.49062533,2069.5,2068.2,3.40478058]
[1773322574407,0.49062533,2069.5,2068.2,1.20878058]
[1773322574611,9.18012473,2069.8,2068.2,1.20878058]
[1773322574612,3.81216995,2069.8,2068.4,1.74421895]
[1773322574905,0.49062533,2069.7,2068.5,0.04834421]
[1773322575310,0.49062533,2070.2,2069.0,1.74421895]
[1773322575547,0.49062533,2070.2,2069.1,0.04833019]
[1773322575824,0.49062533,2070.2,2069.2,1.2081964]
[1773322576127,0.49062533,2070.1,2069.3,0.04832552]
[1773322576931,0.49062533,2070.1,2069.2,1.2081964]
[1773322577528,0.49062533,2070.7,2069.3,1.74421895]
[1773322577833,0.49062533,2070.5,2069.3,0.001]
[1773322578008,0.49062533,2070.3,2069.3,0.001]
[1773322578216,0.49062533,2070.2,2069.3,0.001]
[1773322578530,0.49062533,2070.0,2069.3,0.001]
[1773322579113,0.49062533,2070.0,2069.0,1.20930922]
[1773322579332,0.49062533,2069.8,2069.0,0.001]
[1773322579545,0.49062533,2069.8,2069.0,1.20931167]
[1773322580004,0.49062533,2069.6,2069.0,0.001]
[1773322580206,0.49062533,2069.4,2069.0,0.001]
[1773322582342,0.49546001,2072.0,2070.4,0.20878893]
[1773322582541,0.49546001,2072.0,2071.0,1.74421895]
[1773322582745,0.004,2071.9,2071.0,1.74421895]
[1773322582950,0.004,2071.9,2070.7,0.25215827]
[1773322582951,0.49546001,2072.5,2071.6,1.74421895]
[1773322583133,0.002,2072.2,2071.6,1.74421895]
[1773322583446,0.49546001,2073.0,2071.9,1.74421895]
[1773322583621,1.70144554,2073.0,2071.8,1.74635216]
[1773322583820,0.004,2072.9,2071.8,1.74635216]
[1773322584033,0.49946001,2072.9,2071.0,3.72417921]
[1773322584235,0.49546001,2072.7,2071.1,3.93535216]
[1773322584436,0.002,2072.6,2071.6,1.74635216]
[1773322584676,0.004,2072.6,2071.9,1.74635216]
[1773322584953,0.004,2072.6,2071.1,2.189]
[1773322585154,0.004,2072.6,2071.9,1.74635216]
[1773322585328,1.20604084,2072.9,2071.5,1.74635216]
[1773322585329,1.70150085,2072.9,2071.5,1.74635216]
[1773322585514,0.49546001,2073.4,2071.9,30.0]
[1773322585714,0.49546001,2073.4,2071.8,5.23905648]
[1773322585715,1.7012152,2073.4,2072.0,1.74635216]
[1773322586116,1.7012152,2073.4,2072.2,1.20644725]
[1773322586327,1.7012152,2073.4,2072.3,1.74635216]
[1773322586542,1.7012152,2073.4,2072.1,4.82578901]
[1773322586543,6.39298201,2073.3,2072.1,1.20646162]
[1773322586788,6.39298201,2073.3,2071.8,1.20668018]
[1773322586789,0.49546001,2073.2,2071.8,1.20668018]
[1773322587747,0.49546001,2073.2,2072.0,1.74635216]
[1773322587913,0.49546001,2073.2,2071.8,3.39468018]
[1773322588357,7.21599604,2073.7,2071.8,3.39468018]
[1773322588358,1.30192183,2074.7,2073.1,1.83952391]
[1773322588563,1.30192183,2074.7,2074.1,1.74635216]
[1773322588949,0.80646182,2074.7,2074.1,3.93335216]
[1773322589259,1e-08,2074.7,2074.1,3.93335216]
[1773322589836,4.81988272,2075.7,2074.4,1.74635216]
[1773322589837,0.002,2075.7,2074.4,1.74635216]
[1773322590031,0.002,2075.7,2074.5,6.63262]
[1773322590355,0.002,2075.7,2074.8,1.20493541]
[1773322590356,0.49746001,2075.7,2074.8,1.20493541]
[1773322590584,0.49746001,2075.7,2074.8,3.39193541]
[1773322590780,0.49746001,2075.7,2074.8,1.20493541]
[1773322591292,0.002,2075.7,2074.8,1.20493541]
[1773322592140,0.49746001,2075.7,2074.5,1.20508189]
[1773322592385,0.49546001,2075.5,2073.8,1.74635216]
[1773322592667,0.49546001,2075.5,2073.9,2.187]
[1773322592668,0.49746001,2075.5,2073.9,2.187]
[1773322592856,0.49746001,2075.5,2073.8,2.9518686]
[1773322593061,0.49546001,2074.8,2073.2,1.20586532]
[1773322593406,0.32061155,2078.2,2074.7,13.97081728]
[1773322593680,1.44263073,2079.6,2074.7,13.97081728]
[1773322593681,0.32253509,2079.5,2078.1,6.98540864]
[1773322593840,10.78556001,2080.0,2078.4,0.23247128]
[1773322593841,6.6701,2080.0,2078.4,0.23247128]
[1773322594040,2.23017192,2081.2,2078.9,0.065536]
[1773322594041,1.28412421,2081.2,2078.9,0.065536]
[1773322594240,1.2094138,2080.1,2078.6,1.2027326]
[1773322594545,1.2094138,2080.1,2077.9,4.81237973]
[1773322594546,1.2094138,2080.1,2077.7,1.20325359]
[1773322594547,0.49546001,2079.5,2077.7,1.20325359]
[1773322594755,2.24181217,2079.3,2077.7,1.20325359]
[1773322594967,0.49546001,2079.3,2077.7,1.20325359]
[1773322595139,0.49546001,2079.3,2077.8,1.74635216]
[1773322595343,0.49546001,2079.3,2077.2,5.38854147]
[1773322595344,2.63052114,2079.9,2076.3,5.1324988]
[1773322595345,0.49546001,2077.8,2076.3,5.1324988]
[1773322595544,1.74635216,2077.6,2076.4,1.20400693]
[1773322595772,4.261914,2077.5,2075.8,4.8173255]
[1773322595959,0.49546001,2077.8,2076.0,1.74635216]
[1773322596365,2.822101,2077.6,2076.0,2.9505723]
[1773322596566,2.822101,2077.6,2076.0,1.20422014]
[1773322596567,1.74635216,2077.6,2076.0,1.20422014]
[1773322596752,1.6987136,2077.7,2075.6,1.95888379]
[1773322596753,0.49546001,2077.0,2075.6,1.95888379]
[1773322597384,1.74635216,2077.6,2075.7,1.74635216]
[1773322597681,4.076377,2077.5,2075.7,1.74635216]
[1773322597884,4.076377,2077.5,2075.6,1.95888379]
[1773322597885,5.80687,2077.2,2075.6,0.75442152]
[1773322598097,5.035884,2077.1,2075.6,1.9588478]
[1773322598304,1.20389097,2076.6,2075.6,0.66194049]
[1773322598505,4.81491872,2076.9,2075.6,1.86640549]
[1773322598798,0.49546001,2077.0,2075.7,3.199277]
[1773322599012,0.065536,2077.9,2075.7,3.199277]
[1773322599014,0.49546001,2080.0,2075.7,0.4924629]
[1773322599307,0.7886642,2081.2,2075.7,0.4924629]
[1773322599308,0.49546001,2080.6,2079.1,1.74635216]
[1773322599467,0.49546001,2080.6,2079.2,2.197]
[1773322600094,2.24181217,2080.6,2078.8,1.74635216]
[1773322600297,1.20945677,2080.1,2078.6,1.74635216]
[1773322600475,2.95580893,2080.1,2078.4,1.74635216]
[1773322600676,2.95580893,2080.1,2078.5,8.757835]
[1773322600881,3.45126894,2080.1,2078.5,1.74635216]
[1773322601198,1.70491678,2080.1,2078.5,1.74635216]
[1773322601593,1.70491678,2080.1,2078.6,2.204]
[1773322601790,1.70491678,2080.1,2078.2,1.2029641]
[1773322601791,3.98709,2080.0,2078.2,1.2029641]
[1773322601964,0.49546001,2080.0,2078.2,1.2029641]
[1773322602369,1.20209645,2079.7,2078.2,1.2029641]
[1773322602667,1.44211189,2080.3,2078.2,1.2029641]
[1773322602669,0.161437,2080.9,2079.3,1.74635216]
[1773322602870,3.60468689,2080.9,2079.0,1.74635216]
[1773322603070,1.74635216,2080.3,2078.4,1.74635216]
[1773322603321,0.49491431,2080.6,2078.2,2.94931626]
[1773322603322,1.74635216,2080.0,2078.2,2.94931626]
[1773322603607,1.74635216,2080.2,2078.6,4.610839]